{"text_format":"1","workbook":"xlsx","n_sheets":1,"sheets":["Sheet1"],"not_rendered":{"charts":0,"images":1,"macros":1,"external_links":0,"defined_names":1,"comments":0,"pivot_tables":0},"unopened":[],"bounds":{"document_bytes":16777216,"sheet_cells":100000,"rows_first":2000,"rows_last":500,"rows_between":2000,"halvings":0,"cell_chars":16384,"cell_head_chars":4096},"cells_cut":0,"cells_raw":0,"read":"whole","date_system":"1900"}

{"sheet":"Sheet1","index":0,"n_rows":127,"n_cols":35,"rows_kept":127,"cut":false,"hidden":false,"merged":[[104,0,104,7],[107,0,107,8],[108,0,108,7],[18,1,18,2],[18,4,18,5],[15,1,15,2],[14,4,14,5],[14,9,14,10],[15,4,15,5],[16,1,16,2],[16,4,16,5],[17,1,17,2],[17,4,17,5],[31,2,31,3],[31,9,31,10],[32,2,32,3],[32,9,32,10],[33,2,33,3],[33,9,33,10],[30,2,30,3],[30,9,30,10],[20,1,20,2],[20,4,20,5],[20,9,20,10],[2,0,2,10],[3,0,3,10],[4,0,4,10],[8,0,8,2],[8,9,8,10],[12,0,12,10],[13,1,13,2],[13,4,13,5],[13,9,13,10],[9,0,9,2],[9,9,9,10],[10,0,10,10],[9,4,9,6],[8,4,8,6],[40,2,40,3],[40,9,40,10],[41,2,41,3],[41,9,41,10],[42,9,42,10],[43,0,43,6],[43,9,43,10],[21,0,21,10],[22,0,22,5],[37,2,37,3],[37,9,37,10],[38,2,38,3],[38,9,38,10],[39,2,39,3],[39,9,39,10],[34,2,34,3],[34,9,34,10],[35,2,35,3],[35,9,35,10],[36,2,36,3],[36,9,36,10],[30,4,30,5],[31,4,31,5],[32,4,32,5],[55,2,55,3],[55,9,55,10],[56,2,56,3],[56,9,56,10],[57,2,57,3],[57,9,57,10],[46,1,46,10],[52,0,52,10],[54,2,54,3],[54,9,54,10],[50,0,50,10],[61,2,61,3],[61,9,61,10],[62,2,62,3],[62,9,62,10],[63,2,63,3],[63,9,63,10],[58,2,58,3],[58,9,58,10],[59,2,59,3],[59,9,59,10],[60,2,60,3],[60,9,60,10],[74,2,74,3],[74,9,74,10],[75,2,75,3],[75,9,75,10],[64,2,64,3],[64,9,64,10],[65,2,65,3],[65,9,65,10],[66,9,66,10],[67,0,67,6],[67,9,67,10],[66,2,66,3],[73,2,73,3],[73,9,73,10],[79,9,79,10],[80,2,80,3],[80,9,80,10],[81,2,81,3],[81,9,81,10],[76,2,76,3],[76,9,76,10],[77,2,77,3],[77,9,77,10],[78,2,78,3],[78,9,78,10],[79,2,79,3],[81,4,81,5],[85,4,85,5],[99,8,99,10],[96,0,96,3],[96,4,96,5],[96,6,96,7],[96,8,96,10],[97,0,97,3],[97,4,97,5],[97,6,97,7],[97,8,97,10],[19,0,19,10],[27,0,27,10],[71,0,71,10],[121,1,121,2],[111,0,111,10],[113,0,113,10],[115,6,115,10],[120,1,120,2],[120,6,120,8],[100,0,100,3],[100,4,100,5],[100,6,100,7],[100,8,100,10],[98,0,98,3],[98,4,98,5],[98,6,98,7],[98,8,98,10],[99,0,99,3],[99,4,99,5],[99,6,99,7],[42,2,42,3],[85,9,85,10],[86,0,86,6],[86,9,86,10],[33,4,33,5],[34,4,34,5],[35,4,35,5],[36,4,36,5],[37,4,37,5],[38,4,38,5],[39,4,39,5],[40,4,40,5],[41,4,41,5],[109,0,109,8],[42,4,42,5],[73,4,73,5],[74,4,74,5],[75,4,75,5],[76,4,76,5],[77,4,77,5],[78,4,78,5],[79,4,79,5],[80,4,80,5],[92,0,92,10],[95,4,95,5],[95,6,95,7],[95,8,95,10],[82,2,82,3],[82,9,82,10],[83,2,83,3],[83,9,83,10],[84,2,84,3],[84,9,84,10],[85,2,85,3],[82,4,82,5],[83,4,83,5],[84,4,84,5]]}
["                                                                                                                                                                                                                                                       "]
[]
["Obrazac Skupna izjava "]
["(Izjava radi utvrđivanja statusa subjekta malog gospodarstva)"]
[]
["1. Podaci o prijavitelju"]
[]
["Tablica 1 - Podnositelj zahtjeva "]
["Naziv  poslovnog subjekta (dalje: podnositelj zahtjeva)",null,null,"OIB","Datum zadnjeg odobrenog računovodstvenog razdoblja \n(dan/mjesec/godina)",null,null,"Broj zaposlenika \n(temeljem sati rada) ","Ukupan godišnji promet \n(u EUR)","Ukupna godišnja bilanca \n(u EUR)"]
[]
["NAPOMENA: Podaci za izračun velične (broj zaposlenih, ukupan godišnji promet i ukupna godišnja bilanca) odnose se na posljednje odobreno računovodstveno razdoblje, na godišnjoj razini. U slučaju novoosnovanih poduzeća čija financijska izvješća još nisu odobrena, relevantni podaci uzimaju se iz pouzdane procjene sastavljene tokom godine. "]
[null,null,null,null,null,null,null,null,null,null,null,null,null,null,null,null,null,null,null,null,null,null,null,null,null,null,null,null,null,null,null,null,null,null,"(odaberite)"]
["Vlasnička strukutra prijavitelja",null,null,null,null,null,null,null,null,null,null,null,null,null,null,null,null,null,null,null,null,null,null,null,null,null,null,null,null,null,null,null,null,null,"DA"]
[null,"Vlasnici ",null,"OIB","Postotni udio kapitala ili glasačkih prava u prijavitelju\n(u %)",null,null,null,null,null,null,null,null,null,null,null,null,null,null,null,null,null,null,null,null,null,null,null,null,null,null,null,null,null,"NE"]
["1."]
["2."]
["3."]
["4."]
["5."]
["NAPOMENA: u kolonu vlasnici potrebno je upisati naziv pravne osobe/obrta i/ili ime i prezime fizičke osobe ako su vlasnici više od 10% vlasničkog udjela, dok se ostali vlasnici iskazujuskupno s postotkom vlasništva za cijelu skupinu. "]
[]
["Udio javnih tijela u poduzeću prijavitelja"]
["Poduzećem prijavitelja, izravno ili neizravno, zajedno ili samostalno, upravlja jedno ili više tijela javne vlasti s 25 % ili više kapitala ili glasačkih prava (odgovorite DA ili NE):",null,null,null,null,null,null,null,null,"(odaberite)"]
[{"$f":"IF(J23=\"DA\",\"Vaše poduzeće nema status MSP-a (mikro, mala i srednja poduzeća) i ne može se prijaviti na ovaj  poziv.\",\"\")","v":""}]
[]
[]
["2. Povezana poduzeća",null,null,"P"]
[]
[]
["Tablica 2"]
["RB","Naziv povezanog poduzeća ","OIB ",null,"Datum zaključenja zadnjeg odobrenog računovodstvenog razdoblja \n(dan/mjesec/godina)",null,"Postotni udio kapitala ili glasačkih prava *\n(u %)","Broj zaposlenika \n(temeljem sati rada) ","Ukupan godišnji promet \n(u EUR)","Ukupna godišnja bilanca \n(u EUR)"]
["1."]
["2."]
["3."]
["4."]
["5."]
["6."]
["7."]
["8."]
["9."]
["10."]
["11."]
["12."]
["UKUPNO:",null,null,null,null,null,null,{"$f":"SUM(H32:H43)","v":0},{"$f":"SUM(I32:I43)","v":0},{"$f":"SUM(J32:J43)","v":0}]
[]
["(prema potrebi dodati redove)"]
["*","Udio se odnosi na kapital ili glasačka prava, a uzima se postotak koji je veći. U slučaju unakrsnog udjela između poduzeća prijavitelja i drugog poduzeća, također se primjenjuje veći postotak."]
[]
[]
["3. Povezane osobe"]
[]
[]
[]
["Tablica 3"]
["RB","Naziv fizičke osobe u povezanom odnosu s poduzećem prijavitelja  \n(uzlazno ili silazno, \ndirektno ili indirektno)   ","OIB (fizičke osobe)",null,"Naziv poduzeća s kojim je osoba u povezanom odnosu ","Datum zaključenja zadnjeg odobrenog računovodstvenog razdoblja \n(dan/mjesec/godina)","Postotni udio kapitala ili glasačkih prava u poduzeću iz stupca  D\n(u %)","Broj zaposlenika \n(temeljem sati rada)","Ukupan godišnji promet \n(u EUR)","Ukupna godišnja bilanca \n(u EUR)"]
["1."]
["2."]
["3."]
["4."]
["5."]
["6."]
["7."]
["8."]
["9."]
["10."]
["11."]
["12."]
["UKUPNO:",null,null,null,null,null,null,{"$f":"(SUM(IF($G$56<=50%,0,H56)+IF($G$57<=50%,0,H57)+IF($G$58<=50%,0,H58)+IF($G$59<=50%,0,H59)+IF($G$60<=50%,0,H60)+IF($G$61<=50%,0,H61)+IF($G$62<=50%,0,H62)+IF($G$63<=50%,0,H63)+IF($G$64<=50%,0,H64)+IF($G$65<=50%,0,H65)+IF($G$66<=50%,0,H66)+IF($G$67<=50%,0,H67)))","v":0},{"$f":"(SUM(IF($G$56<=50%,0,I56)+IF($G$57<=50%,0,I57)+IF($G$58<=50%,0,I58)+IF($G$59<=50%,0,I59)+IF($G$60<=50%,0,I60)+IF($G$61<=50%,0,I61)+IF($G$62<=50%,0,I62)+IF($G$63<=50%,0,I63)+IF($G$64<=50%,0,I64)+IF($G$65<=50%,0,I65)+IF($G$66<=50%,0,I66)+IF($G$67<=50%,0,I67)))","v":0},{"$f":"(SUM(IF($G$56<=50%,0,J56)+IF($G$57<=50%,0,J57)+IF($G$58<=50%,0,J58)+IF($G$59<=50%,0,J59)+IF($G$60<=50%,0,J60)+IF($G$61<=50%,0,J61)+IF($G$62<=50%,0,J62)+IF($G$63<=50%,0,J63)+IF($G$64<=50%,0,J64)+IF($G$65<=50%,0,J65)+IF($G$66<=50%,0,J66)+IF($G$67<=50%,0,J67)))","v":0}]
["(prema potrebi dodati redove)"]
[]
["4. Partnerska poduzeća"]
[]
["Tablica 4"]
["RB","Naziv partnerskog poduzeća \n","OIB",null,"Datum zaključenja zadnjeg odobrenog računovodstvenog razdoblja \n(dan/mjesec/godina)",null,"Postotni udio kapitala ili glasačkih prava\n(u %)","Broj zaposlenika \n(u godišnjim jedinicama rada) ","Ukupan godišnji promet \n(u EUR)","Ukupna godišnja bilanca\n(u EUR)"]
["1."]
["2."]
["3."]
["4."]
["5."]
["6."]
["7."]
["8."]
["9."]
["10."]
["11."]
["12."]
["UKUPNO RAZMJERNE VRIJEDNOSTI",null,null,null,null,null,null,{"$f":"SUM(($G$75*H75)+($G$76*H76)+($G$77*H77)+($G$78*H78)+($G$79*H79)+($G$80*H80)+($G$81*H81)+($G$82*H82)+($G$83*H83)+($G$84*H84)+($G$85*H85)+($G$86*H86))","v":0},{"$f":"SUM(($G$75*I75)+($G$76*I76)+($G$77*I77)+($G$78*I78)+($G$79*I79)+($G$80*I80)+($G$81*I81)+($G$82*I82)+($G$83*I83)+($G$84*I84)+($G$85*I85)+($G$86*I86))","v":0},{"$f":"SUM(($G$75*J75)+($G$76*J76)+($G$77*J77)+($G$78*J78)+($G$79*J79)+($G$80*J80)+($G$81*J81)+($G$82*J82)+($G$83*J83)+($G$84*J84)+($G$85*J85)+($G$86*J86))","v":0}]
[]
["(prema potrebi dodati redove)"]
[]
["5. Agregirani podaci za utvrđivanje kategorije poduzeća "]
[]
["U Tablici 5 nalaze se zbirne vrijednosti povezanih poduzeća, partnerskih poduzeća i poduzeća prijavitelja. Podatke nije potrebno ručno zbrajati, već je izračun definiran automatski, a temeljem podataka unesenih u Tablicama 1, 2, 3 i 4."]
["Tablica 5"]
[]
[null,null,null,null,"Broj zaposlenika \n(u godišnjim jedinicama rada)",null,"Ukupan godišnji promet \n(u EUR)",null,"Ukupna godišnja bilanca \n(u EUR)"]
["PODUZEĆE prijavitelja\n(podaci iz Tablice 1)",null,null,null,{"$f":"H10","v":0},null,{"$f":"I10","v":0},null,{"$f":"J10","v":0}]
["POVEZANA PODUZEĆA\n(UKUPNO iz Tablice 2)",null,null,null,{"$f":"H44","v":0},null,{"$f":"I44","v":0},null,{"$f":"J44","v":0}]
["POVEZANE OSOBE\n(UKUPNO iz Tablice 3)",null,null,null,{"$f":"H68","v":0},null,{"$f":"I68","v":0},null,{"$f":"J68","v":0}]
["PARTNERSKA PODUZEĆA\n(UKUPNO iz Tablice 4)",null,null,null,{"$f":"H87","v":0},null,{"$f":"I87","v":0},null,{"$f":"J87","v":0}]
["UKUPNO:",null,null,null,{"$f":"SUM(E97:F100)","v":0},null,{"$f":"SUM(G97:H100)","v":0},null,{"$f":"SUM(I97:K100)","v":0}]
[]
[]
["6. Promjena kategorije poduzeća"]
["U odnosu na prethodno računovodstveno razdoblje došlo je do promjene pokazatelja koji bi mogli prouzročiti promjenu kategorije poduzeća-mikro,  malo, srednje ili veliko poduzeće (odgovorite DA ili NE):",null,null,null,null,null,null,null,null,"(odaberite)"]
[]
[]
[{"$f":"IF(J105=\"DA\",\"Ukoliko je na godišnjoj razini došlo do premašivanja praga broja zaposlenih ili financijskih pragova, to ne dovodi do gubitka ili stjecanja statusa MSP, osim ako se ti pragovi premašuju tijekom dva uzastopna računovodstvena razdoblja.\",\"\")","v":""}]
[{"$f":"IF(J105=\"DA\",\"U tom slučaju, prijavitelj mora ovu izjavu ispuniti, osim za proteklo, i za prethodna dva proračunska razdoblja.\",\"\")","v":""}]
[{"$f":"IF(J105=\"DA\",\"Ne primjenjuje se na poduzeća koja su premašila relevante pragove za MSP-ove zbog promjene vlasništva, nakon spajanja ili kupnje.\",\"\") & IF(J105=\"DA\",\"Poduzeća koja su promijenila vlasništvo procijenjuju se na temelju svoje dioničke strukture u trenutku transakcije, a ne u trenutku zaključenja posljednjeg izvješća. \",\"\")","v":""}]
[]
["Obrazac Skupne izjave ne smije se ni na koji način mijenjati, osim u Tablicama u kojima je moguće dodavati nove redove."]
[]
["Svojim potpisom potvrđujemo da su svi navodi u ovoj Skupnoj izjavi točni i istiniti te da smo upoznati s pravnim posljedicama kaznene odgovornosti za davanje netočnih podataka.  \nSuglasni smo da Hrvatska agencija za malo gospodarstvo, inovacije i investicije može provjeravati točnost navedenih podataka u Skupnoj izjavi u bilo kojoj fazi vrednovanja ili provedbe projekta.\n"]
[]
[null,null,null,null,null,null,"                                 Osoba ovlaštena za zastupanje:"]
["U",null,",",{"$f":"TODAY()","v":"2025-10-13"}]
[]
[]
[]
[null,"_________________________________________________",null,null,null,null,"             __________________________________________________"]
[null,"(puni naziv i pečat prijavitelja)",null,null,null,null,"                                      (funkcija, ime i prezime) "]
[]
[]
[]
[null,null,null,null,null,null,"             __________________________________________________"]
[null,null,null,null,null,null,null,"(potpis)"]